[Event "Titled Tuesday Blitz August 24 2021"]
[White "Tang, Andrew"]
[Black "Azaladze, Shota"]
[WhiteFideId "2059630"]
[BlackFideId "13603027"]
[WhiteElo "2588"]
[BlackElo "2452"]
[Result "1-0"]
[Round "03"]
[TimeControl "180+1"]
[Date "2021.08.24"]
[WhiteClock "0:00:05"]
[BlackClock "0:00:20"]

1. d4 {[%clk 0:03:00]}  g6 {[%clk 0:02:59]} 2. c4 {[%clk 0:02:58]}  Bg7 {[%clk 0:02:59]} 3. Nc3 {[%clk 0:02:58]}  Nf6 {[%clk 0:02:57]} 4. e4 {[%clk 0:02:59]}  c5 {[%clk 0:02:57]} 5. d5 {[%clk 0:02:59]}  O-O {[%clk 0:02:57]} 6. Nge2 {[%clk 0:03:00]}  e6 {[%clk 0:02:57]} 7. Ng3 {[%clk 0:02:51]}  d6 {[%clk 0:02:57]} 8. Be2 {[%clk 0:02:50]}  h6 {[%clk 0:02:54]} 9. O-O {[%clk 0:02:47]}  e5 {[%clk 0:02:54]} 10. f4 {[%clk 0:02:44]}  exf4 {[%clk 0:02:47]} 11. Bxf4 {[%clk 0:02:45]}  Qe7 {[%clk 0:02:46]} 12. Qd2 {[%clk 0:02:36]}  Kh7 {[%clk 0:02:45]} 13. Nb5 {[%clk 0:02:00]}  Ne8 {[%clk 0:02:43]} 14. Rae1 {[%clk 0:01:44]}  a6 {[%clk 0:02:42]} 15. Nc3 {[%clk 0:01:36]}  Nd7 {[%clk 0:02:42]} 16. a4 {[%clk 0:01:13]}  b6 {[%clk 0:02:37]} 17. Nd1 {[%clk 0:01:12]}  Ne5 {[%clk 0:02:37]} 18. Nf2 {[%clk 0:01:12]}  Nf6 {[%clk 0:02:32]} 19. b3 {[%clk 0:01:09]}  Nfd7 {[%clk 0:02:27]} 20. Kh1 {[%clk 0:01:06]}  Bb7 {[%clk 0:02:11]} 21. Nh3 {[%clk 0:00:58]}  Rae8 {[%clk 0:02:08]} 22. Be3 {[%clk 0:00:57]}  a5 {[%clk 0:01:59]} 23. Nf2 {[%clk 0:00:53]}  Bc8 {[%clk 0:01:58]} 24. Nd1 {[%clk 0:00:53]}  Qd8 {[%clk 0:01:45]} 25. Nc3 {[%clk 0:00:53]}  Ba6 {[%clk 0:01:43]} 26. Rf2 {[%clk 0:00:50]}  Nf6 {[%clk 0:01:38]} 27. h3 {[%clk 0:00:42]}  Ng8 {[%clk 0:01:37]} 28. Ref1 {[%clk 0:00:42]}  h5 {[%clk 0:01:37]} 29. Kg1 {[%clk 0:00:39]}  Bh6 {[%clk 0:01:37]} 30. Bxh6 {[%clk 0:00:30]}  Nxh6 {[%clk 0:01:38]} 31. Bxh5 {[%clk 0:00:30]}  Qh4 {[%clk 0:01:35]} 32. Qe3 {[%clk 0:00:24]}  Kg7 {[%clk 0:01:19]} 33. Rf6 {[%clk 0:00:18]}  Ng8 {[%clk 0:01:13]} 34. Rxd6 {[%clk 0:00:17]}  Bc8 {[%clk 0:01:12]} 35. Be2 {[%clk 0:00:14]}  f5 {[%clk 0:00:44]} 36. exf5 {[%clk 0:00:09]}  Bxf5 {[%clk 0:00:41]} 37. Nxf5+ {[%clk 0:00:09]}  gxf5 {[%clk 0:00:39]} 38. Qf4 {[%clk 0:00:08]}  Qxf4 {[%clk 0:00:33]} 39. Rxf4 {[%clk 0:00:09]}  Ng6 {[%clk 0:00:33]} 40. Rf2 {[%clk 0:00:08]}  Re3 {[%clk 0:00:33]} 41. Nb5 {[%clk 0:00:05]}  Rxb3 {[%clk 0:00:33]} 42. Rxb6 {[%clk 0:00:06]}  Re8 {[%clk 0:00:33]} 43. Bh5 {[%clk 0:00:05]}  Re1+ {[%clk 0:00:32]} 44. Kh2 {[%clk 0:00:05]}  Nh4 {[%clk 0:00:30]} 45. Rf4 {[%clk 0:00:05]}  Nf6 {[%clk 0:00:28]} 46. Rxh4 {[%clk 0:00:05]}  Ne4 {[%clk 0:00:28]} 47. Bf3 {[%clk 0:00:05]}  Nf2 {[%clk 0:00:28]} 48. Rb7+ {[%clk 0:00:05]}  Kf6 {[%clk 0:00:27]} 49. Kg3 {[%clk 0:00:04]}  Nh1+ {[%clk 0:00:26]} 50. Kf4 {[%clk 0:00:04]}  Nf2 {[%clk 0:00:20]} 51. Rh6# {[%clk 0:00:05]} 1-0


[Site "https://www.chess.com"]

[Event "Titled Tuesday Blitz August 24 2021"]
[White "Todorovic, Bojan"]
[Black "Quintiliano Pinto, Renato R."]
[WhiteFideId "917087"]
[BlackFideId "2117568"]
[WhiteElo "2266"]
[BlackElo "2439"]
[Result "0-1"]
[Round "03"]
[TimeControl "180+1"]
[Date "2021.08.24"]
[WhiteClock "0:00:03"]
[BlackClock "0:00:16"]

1. Nf3 {[%clk 0:03:00]}  Nf6 {[%clk 0:02:59]} 2. c4 {[%clk 0:02:59]}  e6 {[%clk 0:02:59]} 3. g3 {[%clk 0:02:58]}  d5 {[%clk 0:02:59]} 4. Bg2 {[%clk 0:02:57]}  Be7 {[%clk 0:02:59]} 5. O-O {[%clk 0:02:57]}  O-O {[%clk 0:03:00]} 6. b3 {[%clk 0:02:56]}  c5 {[%clk 0:02:59]} 7. cxd5 {[%clk 0:02:49]}  exd5 {[%clk 0:02:59]} 8. d4 {[%clk 0:02:48]}  Nc6 {[%clk 0:02:59]} 9. Bb2 {[%clk 0:02:47]}  Ne4 {[%clk 0:02:55]} 10. Nc3 {[%clk 0:02:24]}  Bf6 {[%clk 0:02:52]} 11. Rc1 {[%clk 0:02:15]}  cxd4 {[%clk 0:01:57]} 12. Nb5 {[%clk 0:02:01]}  Qb6 {[%clk 0:01:41]} 13. Nbxd4 {[%clk 0:01:52]}  Re8 {[%clk 0:01:39]} 14. e3 {[%clk 0:01:48]}  Bg4 {[%clk 0:01:36]} 15. h3 {[%clk 0:01:28]}  Bh5 {[%clk 0:01:07]} 16. g4 {[%clk 0:01:26]}  Bg6 {[%clk 0:01:07]} 17. Qe2 {[%clk 0:00:56]}  Rad8 {[%clk 0:00:33]} 18. Rfd1 {[%clk 0:00:55]}  h5 {[%clk 0:00:30]} 19. Nxc6 {[%clk 0:00:47]}  bxc6 {[%clk 0:00:30]} 20. Bxf6 {[%clk 0:00:46]}  Nxf6 {[%clk 0:00:31]} 21. Nd4 {[%clk 0:00:44]}  c5 {[%clk 0:00:28]} 22. Nb5 {[%clk 0:00:19]}  hxg4 {[%clk 0:00:24]} 23. hxg4 {[%clk 0:00:19]}  d4 {[%clk 0:00:22]} 24. Na3 {[%clk 0:00:17]}  dxe3 {[%clk 0:00:20]} 25. fxe3 {[%clk 0:00:17]}  Qe6 {[%clk 0:00:16]} 26. Rxd8 {[%clk 0:00:09]}  Rxd8 {[%clk 0:00:17]} 27. Bf3 {[%clk 0:00:09]}  Be4 {[%clk 0:00:15]} 28. Nc4 {[%clk 0:00:06]}  Bxf3 {[%clk 0:00:15]} 29. Qxf3 {[%clk 0:00:07]}  Nxg4 {[%clk 0:00:16]} 30. Rf1 {[%clk 0:00:03]}  Nf6 {[%clk 0:00:16]} 0-1


[Site "https://www.chess.com"]

[Event "Titled Tuesday Blitz August 24 2021"]
[White "Tokman, Ariel"]
[Black "Shimanov, Aleksandr"]
[WhiteFideId "117420"]
[BlackFideId "4198603"]
[WhiteElo "2345"]
[BlackElo "2596"]
[Result "0-1"]
[Round "03"]
[TimeControl "180+1"]
[Date "2021.08.24"]
[WhiteClock "0:00:03"]
[BlackClock "0:00:48"]

1. e4 {[%clk 0:03:00]}  e6 {[%clk 0:02:58]} 2. d3 {[%clk 0:02:57]}  d5 {[%clk 0:02:59]} 3. Nd2 {[%clk 0:02:57]}  Nf6 {[%clk 0:02:57]} 4. Ngf3 {[%clk 0:02:57]}  Be7 {[%clk 0:02:56]} 5. g3 {[%clk 0:02:56]}  b6 {[%clk 0:02:56]} 6. Bg2 {[%clk 0:02:57]}  Bb7 {[%clk 0:02:54]} 7. e5 {[%clk 0:02:56]}  Nfd7 {[%clk 0:02:54]} 8. O-O {[%clk 0:02:57]}  c5 {[%clk 0:02:55]} 9. Re1 {[%clk 0:02:57]}  Nc6 {[%clk 0:02:55]} 10. c3 {[%clk 0:02:54]}  g5 {[%clk 0:02:53]} 11. h3 {[%clk 0:02:44]}  h5 {[%clk 0:02:53]} 12. Qe2 {[%clk 0:02:32]}  g4 {[%clk 0:02:47]} 13. hxg4 {[%clk 0:02:28]}  hxg4 {[%clk 0:02:48]} 14. Nh2 {[%clk 0:02:29]}  Ndxe5 {[%clk 0:02:47]} 15. Nxg4 {[%clk 0:02:27]}  Nxg4 {[%clk 0:02:48]} 16. Qxg4 {[%clk 0:02:27]}  Qd7 {[%clk 0:02:49]} 17. Nf3 {[%clk 0:02:18]}  O-O-O {[%clk 0:02:49]} 18. Bg5 {[%clk 0:01:55]}  Rdg8 {[%clk 0:02:45]} 19. Qf4 {[%clk 0:01:54]}  Bd6 {[%clk 0:02:33]} 20. Qd2 {[%clk 0:01:45]}  Rg6 {[%clk 0:02:29]} 21. Bf4 {[%clk 0:01:44]}  Rg7 {[%clk 0:02:11]} 22. Ne5 {[%clk 0:01:38]}  Bxe5 {[%clk 0:02:08]} 23. Bxe5 {[%clk 0:01:39]}  Nxe5 {[%clk 0:02:08]} 24. Rxe5 {[%clk 0:01:39]}  d4 {[%clk 0:02:08]} 25. Qf4 {[%clk 0:00:26]}  Bxg2 {[%clk 0:02:02]} 26. Kxg2 {[%clk 0:00:26]}  Qb7+ {[%clk 0:02:02]} 27. Qe4 {[%clk 0:00:26]}  dxc3 {[%clk 0:01:59]} 28. bxc3 {[%clk 0:00:25]}  Rd8 {[%clk 0:01:56]} 29. Rd1 {[%clk 0:00:21]}  Rh7 {[%clk 0:01:49]} 30. Qxb7+ {[%clk 0:00:20]}  Kxb7 {[%clk 0:01:48]} 31. Kf3 {[%clk 0:00:21]}  Rd7 {[%clk 0:01:45]} 32. Ke2 {[%clk 0:00:21]}  Kc6 {[%clk 0:01:43]} 33. a4 {[%clk 0:00:21]}  Rg7 {[%clk 0:01:41]} 34. Re4 {[%clk 0:00:21]}  Rg5 {[%clk 0:01:40]} 35. Ra1 {[%clk 0:00:21]}  Rgd5 {[%clk 0:01:40]} 36. Re3 {[%clk 0:00:19]}  Rd8 {[%clk 0:01:38]} 37. c4 {[%clk 0:00:19]}  Rd4 {[%clk 0:01:38]} 38. a5 {[%clk 0:00:20]}  b5 {[%clk 0:01:37]} 39. cxb5+ {[%clk 0:00:21]}  Kxb5 {[%clk 0:01:38]} 40. Rf3 {[%clk 0:00:19]}  R8d7 {[%clk 0:01:38]} 41. Re3 {[%clk 0:00:16]}  Ra4 {[%clk 0:01:36]} 42. Rc1 {[%clk 0:00:09]}  Rxa5 {[%clk 0:01:35]} 43. Re5 {[%clk 0:00:09]}  Kb6 {[%clk 0:01:33]} 44. Re4 {[%clk 0:00:07]}  Ra2+ {[%clk 0:01:32]} 45. Ke3 {[%clk 0:00:08]}  Ra3 {[%clk 0:01:32]} 46. Rd1 {[%clk 0:00:08]}  Rb3 {[%clk 0:01:30]} 47. g4 {[%clk 0:00:08]}  a5 {[%clk 0:01:31]} 48. g5 {[%clk 0:00:09]}  Kb5 {[%clk 0:01:30]} 49. g6 {[%clk 0:00:07]}  fxg6 {[%clk 0:01:30]} 50. Rxe6 {[%clk 0:00:07]}  c4 {[%clk 0:01:31]} 51. Rxg6 {[%clk 0:00:04]}  a4 {[%clk 0:01:27]} 52. Rg5+ {[%clk 0:00:04]}  Kb4 {[%clk 0:01:27]} 53. Rg8 {[%clk 0:00:04]}  cxd3 {[%clk 0:01:23]} 54. Rd2 {[%clk 0:00:03]}  Re7+ {[%clk 0:01:15]} 55. Kd4 {[%clk 0:00:02]}  Rd7+ {[%clk 0:01:15]} 56. Ke3 {[%clk 0:00:02]}  Ka3 {[%clk 0:00:59]} 57. Ra8 {[%clk 0:00:02]}  Re7+ {[%clk 0:00:50]} 58. Kd4 {[%clk 0:00:02]}  Rf7 {[%clk 0:00:49]} 59. Ke3 {[%clk 0:00:02]}  Re7+ {[%clk 0:00:47]} 60. Kd4 {[%clk 0:00:03]}  Rh7 {[%clk 0:00:48]} 0-1


[Site "https://www.chess.com"]

[Event "Titled Tuesday Blitz August 24 2021"]
[White "Tsaruk, Maksim"]
[Black "Le, Tuan Minh"]
[WhiteFideId "13511173"]
[BlackFideId "12401153"]
[WhiteElo "2184"]
[BlackElo "2450"]
[Result "1-0"]
[Round "03"]
[TimeControl "180+1"]
[Date "2021.08.24"]
[WhiteClock "0:00:07"]
[BlackClock "0:00:02"]

1. e4 {[%clk 0:03:00]}  c5 {[%clk 0:02:58]} 2. Nf3 {[%clk 0:03:01]}  Nf6 {[%clk 0:02:57]} 3. e5 {[%clk 0:03:00]}  Nd5 {[%clk 0:02:56]} 4. Nc3 {[%clk 0:03:01]}  e6 {[%clk 0:02:56]} 5. Nxd5 {[%clk 0:02:59]}  exd5 {[%clk 0:02:57]} 6. d4 {[%clk 0:02:59]}  Nc6 {[%clk 0:02:57]} 7. c3 {[%clk 0:02:57]}  d6 {[%clk 0:02:58]} 8. exd6 {[%clk 0:02:56]}  Bxd6 {[%clk 0:02:58]} 9. Bb5 {[%clk 0:02:56]}  O-O {[%clk 0:02:58]} 10. O-O {[%clk 0:02:56]}  Bg4 {[%clk 0:02:57]} 11. dxc5 {[%clk 0:02:43]}  Bxc5 {[%clk 0:02:57]} 12. h3 {[%clk 0:02:43]}  Bh5 {[%clk 0:02:57]} 13. Bf4 {[%clk 0:01:54]}  Re8 {[%clk 0:02:55]} 14. g4 {[%clk 0:01:44]}  Bg6 {[%clk 0:02:54]} 15. Bg3 {[%clk 0:01:45]}  Qb6 {[%clk 0:02:48]} 16. a4 {[%clk 0:01:43]}  Rad8 {[%clk 0:02:12]} 17. b4 {[%clk 0:01:25]}  Bf8 {[%clk 0:02:12]} 18. Nd4 {[%clk 0:01:24]}  Nxd4 {[%clk 0:00:42]} 19. Bxe8 {[%clk 0:01:18]}  Nc2 {[%clk 0:00:42]} 20. Bxf7+ {[%clk 0:00:56]}  Kxf7 {[%clk 0:00:42]} 21. Ra2 {[%clk 0:00:56]}  d4 {[%clk 0:00:29]} 22. Rxc2 {[%clk 0:00:49]}  Bxc2 {[%clk 0:00:30]} 23. Qxc2 {[%clk 0:00:50]}  d3 {[%clk 0:00:31]} 24. Qb3+ {[%clk 0:00:35]}  Qe6 {[%clk 0:00:31]} 25. Qxe6+ {[%clk 0:00:35]}  Kxe6 {[%clk 0:00:32]} 26. Rd1 {[%clk 0:00:35]}  g6 {[%clk 0:00:28]} 27. Kg2 {[%clk 0:00:17]}  Bg7 {[%clk 0:00:28]} 28. c4 {[%clk 0:00:17]}  Rd4 {[%clk 0:00:16]} 29. c5 {[%clk 0:00:11]}  Rxb4 {[%clk 0:00:12]} 30. Rxd3 {[%clk 0:00:11]}  Rxa4 {[%clk 0:00:13]} 31. Rd6+ {[%clk 0:00:11]}  Ke7 {[%clk 0:00:13]} 32. Bh4+ {[%clk 0:00:12]}  Ke8 {[%clk 0:00:05]} 33. Rd8+ {[%clk 0:00:12]}  Kf7 {[%clk 0:00:06]} 34. Rd7+ {[%clk 0:00:13]}  Kf8 {[%clk 0:00:05]} 35. Rxb7 {[%clk 0:00:09]}  Rc4 {[%clk 0:00:03]} 36. Rxa7 {[%clk 0:00:08]}  Bd4 {[%clk 0:00:04]} 37. Rxh7 {[%clk 0:00:04]}  Kg8 {[%clk 0:00:04]} 38. Rc7 {[%clk 0:00:04]}  Rc2 {[%clk 0:00:02]} 39. Bg3 {[%clk 0:00:04]}  Kf8 {[%clk 0:00:01]} 40. h4 {[%clk 0:00:02]}  Ke8 {[%clk 0:00:01]} 41. c6 {[%clk 0:00:03]}  Bb6 {[%clk 0:00:01]} 42. Rc8+ {[%clk 0:00:02]}  Ke7 {[%clk 0:00:02]} 43. h5 {[%clk 0:00:02]}  gxh5 {[%clk 0:00:03]} 44. gxh5 {[%clk 0:00:03]}  Kf6 {[%clk 0:00:04]} 45. h6 {[%clk 0:00:04]}  Kg6 {[%clk 0:00:04]} 46. c7 {[%clk 0:00:04]}  Kh7 {[%clk 0:00:04]} 47. Rb8 {[%clk 0:00:04]}  Bxf2 {[%clk 0:00:03]} 48. Bxf2 {[%clk 0:00:03]}  Rxc7 {[%clk 0:00:03]} 49. Be3 {[%clk 0:00:03]}  Re7 {[%clk 0:00:03]} 50. Rb3 {[%clk 0:00:03]}  Rf7 {[%clk 0:00:02]} 51. Kg3 {[%clk 0:00:03]}  Re7 {[%clk 0:00:02]} 52. Kf3 {[%clk 0:00:04]}  Rf7+ {[%clk 0:00:03]} 53. Bf4 {[%clk 0:00:05]}  Re7 {[%clk 0:00:03]} 54. Kg4 {[%clk 0:00:05]}  Rd7 {[%clk 0:00:03]} 55. Rc3 {[%clk 0:00:06]}  Re7 {[%clk 0:00:03]} 56. Kh5 {[%clk 0:00:06]}  Kg8 {[%clk 0:00:02]} 57. Bg5 {[%clk 0:00:06]}  Rd7 {[%clk 0:00:02]} 58. Rc8+ {[%clk 0:00:06]}  Kh7 {[%clk 0:00:02]} 59. Re8 {[%clk 0:00:07]} 1-0


[Site "https://www.chess.com"]

[Event "Titled Tuesday Blitz August 24 2021"]
[White "Vazquez, Facundo"]
[Black "Yeletsky, Ivan"]
[WhiteFideId "3007669"]
[BlackFideId "24180327"]
[WhiteElo "1984"]
[BlackElo "2344"]
[Result "0-1"]
[Round "03"]
[TimeControl "180+1"]
[Date "2021.08.24"]
[WhiteClock "0:00:06"]
[BlackClock "0:00:22"]

1. d4 {[%clk 0:03:00]}  Nf6 {[%clk 0:02:59]} 2. c4 {[%clk 0:02:59]}  c6 {[%clk 0:02:59]} 3. Nc3 {[%clk 0:02:59]}  d5 {[%clk 0:03:00]} 4. e3 {[%clk 0:02:58]}  Bf5 {[%clk 0:02:58]} 5. Qb3 {[%clk 0:02:56]}  Qb6 {[%clk 0:02:53]} 6. c5 {[%clk 0:02:55]}  Qc7 {[%clk 0:02:53]} 7. Nf3 {[%clk 0:02:50]}  Nbd7 {[%clk 0:02:53]} 8. Be2 {[%clk 0:02:48]}  e5 {[%clk 0:02:50]} 9. O-O {[%clk 0:02:44]}  e4 {[%clk 0:02:49]} 10. Ne1 {[%clk 0:02:41]}  b6 {[%clk 0:02:41]} 11. cxb6 {[%clk 0:02:39]}  axb6 {[%clk 0:02:42]} 12. f3 {[%clk 0:02:39]}  Bd6 {[%clk 0:02:35]} 13. f4 {[%clk 0:02:39]}  h5 {[%clk 0:02:29]} 14. Bd2 {[%clk 0:02:34]}  h4 {[%clk 0:02:27]} 15. Rc1 {[%clk 0:02:30]}  Qb8 {[%clk 0:02:22]} 16. Nc2 {[%clk 0:02:24]}  h3 {[%clk 0:02:20]} 17. g3 {[%clk 0:02:23]}  Bg4 {[%clk 0:02:20]} 18. Nb4 {[%clk 0:02:18]}  Qb7 {[%clk 0:02:16]} 19. Bxg4 {[%clk 0:02:01]}  Nxg4 {[%clk 0:02:16]} 20. Nxc6 {[%clk 0:01:53]}  Qxc6 {[%clk 0:02:11]} 21. Nxd5 {[%clk 0:01:38]}  Qb7 {[%clk 0:01:59]} 22. Bb4 {[%clk 0:01:37]}  Rh6 {[%clk 0:01:38]} 23. Bxd6 {[%clk 0:01:30]}  Rxd6 {[%clk 0:01:38]} 24. Nc7+ {[%clk 0:01:30]}  Ke7 {[%clk 0:01:38]} 25. Nxa8 {[%clk 0:01:08]}  Qxa8 {[%clk 0:01:39]} 26. f5 {[%clk 0:01:07]}  Kf6 {[%clk 0:01:33]} 27. Rf4 {[%clk 0:01:04]}  Nh6 {[%clk 0:01:29]} 28. g4 {[%clk 0:01:04]}  Kg5 {[%clk 0:01:22]} 29. Qc2 {[%clk 0:00:53]}  Nf6 {[%clk 0:01:17]} 30. Kh1 {[%clk 0:00:51]}  Qa6 {[%clk 0:01:14]} 31. Rd1 {[%clk 0:00:43]}  Qb5 {[%clk 0:01:09]} 32. Qf2 {[%clk 0:00:38]}  Nd5 {[%clk 0:01:03]} 33. Rxe4 {[%clk 0:00:30]}  Ng8 {[%clk 0:00:54]} 34. Re5 {[%clk 0:00:17]}  Ngf6 {[%clk 0:00:41]} 35. Qf4+ {[%clk 0:00:14]}  Nxf4 {[%clk 0:00:38]} 36. exf4+ {[%clk 0:00:15]}  Kxf4 {[%clk 0:00:38]} 37. Rxb5 {[%clk 0:00:15]}  Nxg4 {[%clk 0:00:39]} 38. Kg1 {[%clk 0:00:14]}  Ne3 {[%clk 0:00:38]} 39. Rd2 {[%clk 0:00:14]}  f6 {[%clk 0:00:34]} 40. b4 {[%clk 0:00:13]}  Rc6 {[%clk 0:00:33]} 41. Kf2 {[%clk 0:00:13]}  Ng4+ {[%clk 0:00:33]} 42. Ke2 {[%clk 0:00:12]}  Nxh2 {[%clk 0:00:31]} 43. d5 {[%clk 0:00:13]}  Rd6 {[%clk 0:00:32]} 44. a4 {[%clk 0:00:11]}  Ng4 {[%clk 0:00:32]} 45. Kf1 {[%clk 0:00:11]}  Kg3 {[%clk 0:00:26]} 46. Kg1 {[%clk 0:00:07]}  Rd8 {[%clk 0:00:22]} 47. a5 {[%clk 0:00:06]}  Re8 {[%clk 0:00:22]} 0-1


[Site "https://www.chess.com"]

[Event "Titled Tuesday Blitz August 24 2021"]
[White "Yanchenko, Roman"]
[Black "Eynullayev, Altay"]
[WhiteFideId "4137329"]
[BlackFideId "13413562"]
[WhiteElo "2514"]
[BlackElo "2079"]
[Result "1-0"]
[Round "03"]
[TimeControl "180+1"]
[Date "2021.08.24"]
[WhiteClock "0:00:16"]
[BlackClock "0:00:03"]

1. d4 {[%clk 0:02:57]}  Nf6 {[%clk 0:02:59]} 2. c4 {[%clk 0:02:58]}  e6 {[%clk 0:03:00]} 3. Nf3 {[%clk 0:02:58]}  b6 {[%clk 0:03:00]} 4. g3 {[%clk 0:02:58]}  Ba6 {[%clk 0:03:01]} 5. b3 {[%clk 0:02:58]}  Bb4+ {[%clk 0:03:01]} 6. Bd2 {[%clk 0:02:58]}  Be7 {[%clk 0:03:02]} 7. Bg2 {[%clk 0:02:58]}  c6 {[%clk 0:03:02]} 8. O-O {[%clk 0:02:58]}  d5 {[%clk 0:03:02]} 9. Qc2 {[%clk 0:02:57]}  O-O {[%clk 0:03:01]} 10. Rd1 {[%clk 0:02:56]}  Nbd7 {[%clk 0:03:01]} 11. Bf4 {[%clk 0:02:53]}  Rc8 {[%clk 0:02:59]} 12. Nbd2 {[%clk 0:02:46]}  c5 {[%clk 0:02:59]} 13. dxc5 {[%clk 0:02:45]}  Nxc5 {[%clk 0:02:52]} 14. Qb2 {[%clk 0:02:43]}  b5 {[%clk 0:02:17]} 15. cxd5 {[%clk 0:02:35]}  Nxd5 {[%clk 0:02:17]} 16. Be5 {[%clk 0:02:35]}  f6 {[%clk 0:02:09]} 17. Bd4 {[%clk 0:02:35]}  e5 {[%clk 0:01:55]} 18. Bxc5 {[%clk 0:02:34]}  Bxc5 {[%clk 0:01:46]} 19. Ne4 {[%clk 0:02:34]}  Bb6 {[%clk 0:00:50]} 20. Nh4 {[%clk 0:02:08]}  Bb7 {[%clk 0:00:46]} 21. e3 {[%clk 0:02:02]}  g6 {[%clk 0:00:25]} 22. Nc3 {[%clk 0:01:57]}  Bd4 {[%clk 0:00:21]} 23. Bxd5+ {[%clk 0:01:12]}  Qxd5 {[%clk 0:00:20]} 24. Nxd5 {[%clk 0:01:12]}  Bxb2 {[%clk 0:00:20]} 25. Ne7+ {[%clk 0:01:12]}  Kf7 {[%clk 0:00:21]} 26. Nxc8 {[%clk 0:01:12]}  Bxc8 {[%clk 0:00:11]} 27. Rab1 {[%clk 0:01:11]}  Bc3 {[%clk 0:00:10]} 28. Rbc1 {[%clk 0:01:09]}  b4 {[%clk 0:00:10]} 29. a3 {[%clk 0:01:09]}  a5 {[%clk 0:00:11]} 30. axb4 {[%clk 0:01:08]}  axb4 {[%clk 0:00:12]} 31. Rd6 {[%clk 0:00:50]}  Be6 {[%clk 0:00:11]} 32. Rb1 {[%clk 0:00:50]}  Ra8 {[%clk 0:00:09]} 33. Nf3 {[%clk 0:00:39]}  Ra2 {[%clk 0:00:10]} 34. Rb6 {[%clk 0:00:33]}  g5 {[%clk 0:00:10]} 35. Rb7+ {[%clk 0:00:26]}  Kg6 {[%clk 0:00:10]} 36. e4 {[%clk 0:00:20]}  Bg4 {[%clk 0:00:07]} 37. Kg2 {[%clk 0:00:20]}  h5 {[%clk 0:00:06]} 38. h4 {[%clk 0:00:19]}  Be6 {[%clk 0:00:04]} 39. hxg5 {[%clk 0:00:19]}  fxg5 {[%clk 0:00:05]} 40. Rb6 {[%clk 0:00:19]}  Kf6 {[%clk 0:00:05]} 41. Nxg5 {[%clk 0:00:19]}  Kxg5 {[%clk 0:00:06]} 42. Rxe6 {[%clk 0:00:19]}  Bd4 {[%clk 0:00:06]} 43. Rf1 {[%clk 0:00:18]}  Rb2 {[%clk 0:00:07]} 44. Kh3 {[%clk 0:00:16]}  Rxb3 {[%clk 0:00:07]} 45. f4+ {[%clk 0:00:16]}  exf4 {[%clk 0:00:07]} 46. Rxf4 {[%clk 0:00:16]}  h4 {[%clk 0:00:03]} 47. Rf5# {[%clk 0:00:16]} 1-0


[Site "https://www.chess.com"]

[Event "Titled Tuesday Blitz August 24 2021"]
[White "Yaran, Siar"]
[Black "Loy, Konstantin"]
[WhiteFideId "6323006"]
[BlackFideId "14122499"]
[WhiteElo "1977"]
[BlackElo "2084"]
[Result "1/2-1/2"]
[Round "03"]
[TimeControl "180+1"]
[Date "2021.08.24"]
[WhiteClock "0:01:59"]
[BlackClock "0:00:57"]

1. c4 {[%clk 0:03:00]}  c5 {[%clk 0:02:59]} 2. Nc3 {[%clk 0:03:00]}  Nc6 {[%clk 0:02:59]} 3. g3 {[%clk 0:03:01]}  g6 {[%clk 0:02:59]} 4. Bg2 {[%clk 0:03:01]}  Bg7 {[%clk 0:03:00]} 5. d3 {[%clk 0:03:01]}  Nf6 {[%clk 0:03:00]} 6. Nf3 {[%clk 0:03:00]}  O-O {[%clk 0:03:00]} 7. O-O {[%clk 0:03:01]}  Rb8 {[%clk 0:02:58]} 8. Be3 {[%clk 0:02:58]}  d6 {[%clk 0:02:55]} 9. h3 {[%clk 0:02:56]}  a6 {[%clk 0:02:52]} 10. d4 {[%clk 0:02:56]}  cxd4 {[%clk 0:02:51]} 11. Nxd4 {[%clk 0:02:57]}  Nxd4 {[%clk 0:02:43]} 12. Bxd4 {[%clk 0:02:57]}  Bd7 {[%clk 0:02:29]} 13. Rc1 {[%clk 0:02:55]}  Bc6 {[%clk 0:02:28]} 14. Nd5 {[%clk 0:02:54]}  Bxd5 {[%clk 0:02:27]} 15. cxd5 {[%clk 0:02:51]}  Rc8 {[%clk 0:02:26]} 16. Qd3 {[%clk 0:02:50]}  Qd7 {[%clk 0:02:22]} 17. e4 {[%clk 0:02:40]}  Qb5 {[%clk 0:02:19]} 18. Qxb5 {[%clk 0:02:36]}  axb5 {[%clk 0:02:19]} 19. f4 {[%clk 0:02:32]}  Nd7 {[%clk 0:02:17]} 20. Bxg7 {[%clk 0:02:31]}  Kxg7 {[%clk 0:02:17]} 21. Kf2 {[%clk 0:02:30]}  Rc5 {[%clk 0:02:02]} 22. Rxc5 {[%clk 0:02:15]}  Nxc5 {[%clk 0:02:00]} 23. Ke3 {[%clk 0:02:12]}  b4 {[%clk 0:01:51]} 24. Ra1 {[%clk 0:02:05]}  Ra8 {[%clk 0:01:50]} 25. a3 {[%clk 0:02:03]}  Nb3 {[%clk 0:01:42]} 26. Ra2 {[%clk 0:02:01]}  Nc1 {[%clk 0:01:35]} 27. Ra1 {[%clk 0:02:01]}  Nb3 {[%clk 0:01:35]} 28. Ra2 {[%clk 0:02:01]}  Nc1 {[%clk 0:00:57]} 29. Ra1 {[%clk 0:01:59]}  Nb3 {[%clk 0:00:57]} 1/2-1/2


[Site "https://www.chess.com"]

[Event "Titled Tuesday Blitz August 24 2021"]
[White "Yoo, Christopher Woojin"]
[Black "Tologon tegin, Semetei"]
[WhiteFideId "30909694"]
[BlackFideId "13800574"]
[WhiteElo "2105"]
[BlackElo "2224"]
[Result "1-0"]
[Round "03"]
[TimeControl "180+1"]
[Date "2021.08.24"]
[WhiteClock "0:00:25"]
[BlackClock "0:00:05"]

1. e4 {[%clk 0:02:49]}  c5 {[%clk 0:02:56]} 2. Nf3 {[%clk 0:02:48]}  d6 {[%clk 0:02:56]} 3. Nc3 {[%clk 0:02:47]}  Nf6 {[%clk 0:02:47]} 4. e5 {[%clk 0:02:46]}  dxe5 {[%clk 0:02:47]} 5. Nxe5 {[%clk 0:02:47]}  a6 {[%clk 0:02:47]} 6. g3 {[%clk 0:02:47]}  Nbd7 {[%clk 0:02:46]} 7. d4 {[%clk 0:02:45]}  cxd4 {[%clk 0:02:38]} 8. Qxd4 {[%clk 0:02:44]}  e6 {[%clk 0:02:31]} 9. Bf4 {[%clk 0:02:29]}  Bc5 {[%clk 0:02:29]} 10. Qc4 {[%clk 0:02:28]}  Qb6 {[%clk 0:02:17]} 11. Nd3 {[%clk 0:02:25]}  Bd4 {[%clk 0:02:04]} 12. Bg2 {[%clk 0:02:23]}  e5 {[%clk 0:01:59]} 13. Bd2 {[%clk 0:02:16]}  Nc5 {[%clk 0:01:32]} 14. Nxc5 {[%clk 0:01:56]}  Qxc5 {[%clk 0:01:32]} 15. Qxc5 {[%clk 0:01:56]}  Bxc5 {[%clk 0:01:32]} 16. O-O {[%clk 0:01:55]}  O-O {[%clk 0:01:33]} 17. Rae1 {[%clk 0:01:54]}  Bd4 {[%clk 0:01:25]} 18. Be3 {[%clk 0:01:38]}  Bf5 {[%clk 0:01:25]} 19. Bxd4 {[%clk 0:01:19]}  exd4 {[%clk 0:01:26]} 20. Ne4 {[%clk 0:00:58]}  Rac8 {[%clk 0:01:16]} 21. Nd6 {[%clk 0:00:57]}  Rc5 {[%clk 0:01:00]} 22. b4 {[%clk 0:00:56]}  Rb5 {[%clk 0:00:41]} 23. Nxb5 {[%clk 0:00:51]}  axb5 {[%clk 0:00:41]} 24. Rd1 {[%clk 0:00:50]}  Rd8 {[%clk 0:00:40]} 25. Rd2 {[%clk 0:00:47]}  Ne4 {[%clk 0:00:22]} 26. Bxe4 {[%clk 0:00:46]}  Bxe4 {[%clk 0:00:23]} 27. Rfd1 {[%clk 0:00:46]}  d3 {[%clk 0:00:13]} 28. f3 {[%clk 0:00:45]}  Bf5 {[%clk 0:00:06]} 29. cxd3 {[%clk 0:00:43]}  h5 {[%clk 0:00:07]} 30. d4 {[%clk 0:00:42]}  Rd5 {[%clk 0:00:06]} 31. Rc1 {[%clk 0:00:42]}  Be6 {[%clk 0:00:06]} 32. Rc5 {[%clk 0:00:40]}  Rd7 {[%clk 0:00:06]} 33. Rxb5 {[%clk 0:00:40]}  Bd5 {[%clk 0:00:06]} 34. Kf2 {[%clk 0:00:39]}  g6 {[%clk 0:00:06]} 35. Rc5 {[%clk 0:00:38]}  Kg7 {[%clk 0:00:06]} 36. a4 {[%clk 0:00:38]}  Kf6 {[%clk 0:00:06]} 37. a5 {[%clk 0:00:38]}  Ke6 {[%clk 0:00:06]} 38. b5 {[%clk 0:00:37]}  Kd6 {[%clk 0:00:07]} 39. Rb2 {[%clk 0:00:33]}  Rd8 {[%clk 0:00:05]} 40. a6 {[%clk 0:00:27]}  Ra8 {[%clk 0:00:05]} 41. axb7 {[%clk 0:00:25]}  Bxb7 {[%clk 0:00:06]} 42. b6 {[%clk 0:00:25]}  Bd5 {[%clk 0:00:05]} 43. b7 {[%clk 0:00:25]}  Rb8 {[%clk 0:00:05]} 44. Rb6+ {[%clk 0:00:25]} 1-0


[Site "https://www.chess.com"]